bitfinex/quotes_BTCUSD_20250115
["timestamp","ask_amount","ask_price","bid_price","bid_amount"]
[1736978829254,0.69755481,99651.0,99650.0,0.42629258]
[1736978829465,0.92193821,99651.0,99650.0,0.43635735]
[1736978829905,0.60153821,99651.0,99650.0,0.51725735]
[1736978830324,0.60153821,99651.0,99650.0,0.54025735]
[1736978830542,0.00249026,99651.0,99650.0,0.58085735]
[1736978830751,0.00149026,99651.0,99650.0,0.70585735]
[1736978830962,0.00549026,99651.0,99650.0,0.91008427]
[1736978831174,0.08986328,99656.0,99655.0,0.577192]
[1736978831379,0.08986328,99680.0,99662.0,0.200678]
[1736978831810,0.08986328,99680.0,99662.0,0.401356]
[1736978832027,0.200625,99689.0,99662.0,0.401356]
[1736978832239,0.200625,99689.0,99664.0,0.200674]
[1736978833053,0.08986328,99692.0,99664.0,0.477174]
[1736978833291,0.08986328,99692.0,99664.0,0.68140092]
[1736978833435,0.00309052,99665.0,99664.0,0.78140092]
[1736978833633,0.00109052,99665.0,99664.0,0.78140092]
[1736978833861,0.00509052,99665.0,99664.0,0.79739151]
[1736978834062,0.00409052,99665.0,99664.0,0.79739151]
[1736978834406,9.052e-05,99665.0,99664.0,0.79739151]
[1736978834832,0.200577,99713.0,99674.0,0.388554]
[1736978835013,0.00184683,99675.0,99674.0,0.49278092]
[1736978836056,0.00284683,99675.0,99674.0,0.49878092]
[1736978836482,0.00184683,99675.0,99674.0,0.49278092]
[1736978836684,0.00284683,99675.0,99674.0,0.49878092]
[1736978836859,0.00184683,99675.0,99674.0,0.49278092]
[1736978837271,0.00284683,99675.0,99674.0,0.49878092]
[1736978837869,0.00284683,99675.0,99674.0,0.51090392]
[1736978838329,0.00284683,99675.0,99674.0,0.50890392]
[1736978838453,0.00184683,99675.0,99674.0,0.50290392]
[1736978838665,0.00184683,99675.0,99674.0,0.50990392]
[1736978838886,0.00184683,99675.0,99674.0,0.50490392]
[1736978839348,0.00184683,99675.0,99674.0,0.50890392]
[1736978843511,0.00184683,99675.0,99674.0,0.50490392]
[1736978843764,0.00184683,99675.0,99674.0,0.50290392]
[1736978844000,0.00184683,99675.0,99674.0,0.50690392]
[1736978844181,0.00184683,99675.0,99674.0,0.50390392]
[1736978844584,0.00184683,99675.0,99674.0,0.50290392]
[1736978844789,0.00184683,99675.0,99674.0,0.50390392]
[1736978845440,0.00184683,99675.0,99674.0,0.50690392]
[1736978845643,0.00184683,99675.0,99674.0,0.402677]
[1736978845854,0.00184683,99675.0,99674.0,0.102023]
[1736978846279,0.00184683,99675.0,99674.0,0.101023]
[1736978846430,0.00184683,99675.0,99674.0,0.099023]
[1736978846645,0.00184683,99675.0,99674.0,0.101023]
[1736978846863,0.00184683,99675.0,99674.0,0.099023]
[1736978847068,0.00184683,99675.0,99674.0,0.098023]
[1736978847269,0.00184683,99675.0,99674.0,0.101023]
[1736978847662,0.00184683,99675.0,99674.0,0.100023]
[1736978848051,0.00284683,99675.0,99674.0,0.100023]
[1736978848477,0.00284683,99675.0,99674.0,0.098023]
[1736978849885,0.00384683,99675.0,99674.0,0.098023]
[1736978851009,0.00384683,99675.0,99674.0,0.055723]
[1736978851239,0.00384683,99675.0,99674.0,0.010123]
[1736978851471,0.00384683,99675.0,99674.0,0.200654]
[1736978851642,0.00384683,99675.0,99667.0,0.200666]
[1736978851944,0.00384683,99675.0,99666.0,0.20067]
[1736978852349,0.00384683,99675.0,99667.0,0.15]
[1736978852527,0.00184683,99675.0,99667.0,0.15]
[1736978852800,0.00184683,99675.0,99667.0,0.151]
[1736978853000,0.00184683,99675.0,99667.0,0.153]
[1736978853179,0.00184683,99675.0,99669.0,0.15]
[1736978853976,0.00284683,99675.0,99669.0,0.15]
[1736978854596,0.00284683,99675.0,99667.0,0.15]
[1736978855000,0.00484683,99675.0,99667.0,0.15]
[1736978855450,0.00384683,99675.0,99667.0,0.15]
[1736978855660,0.00684683,99675.0,99667.0,0.15]
[1736978855867,0.00284683,99675.0,99669.0,0.15]
[1736978856047,0.00484683,99675.0,99669.0,0.15]
[1736978856249,0.00384683,99675.0,99669.0,0.15]
[1736978856451,0.00384683,99675.0,99671.0,0.15]
[1736978856656,0.00484683,99675.0,99672.0,0.200657]
[1736978857191,0.00384683,99675.0,99672.0,0.200657]
[1736978857505,0.00484683,99675.0,99672.0,0.200657]
[1736978857714,0.00284683,99675.0,99672.0,0.401315]
[1736978858094,0.00584683,99675.0,99672.0,0.401315]
[1736978858305,0.00284683,99675.0,99672.0,0.401315]
[1736978858719,0.00384683,99675.0,99672.0,0.401315]
[1736978859083,0.00484683,99675.0,99672.0,0.403315]
[1736978859322,0.00284683,99675.0,99672.0,0.401315]
[1736978859517,0.00184683,99675.0,99672.0,0.401315]
[1736978863579,0.00184683,99675.0,99673.0,0.040156]
[1736978863783,0.00184683,99675.0,99674.0,0.200654]
[1736978864888,0.00184683,99675.0,99673.0,0.040156]
[1736978865294,0.00284683,99675.0,99673.0,0.040156]
[1736978866242,0.00384683,99675.0,99673.0,0.040156]
[1736978867008,0.00284683,99675.0,99673.0,0.040156]
[1736978867213,0.00584683,99675.0,99673.0,0.040156]
[1736978869580,0.00584683,99675.0,99671.0,0.15]
[1736978870236,0.00584683,99675.0,99672.0,0.200658]
[1736978870421,0.00284683,99675.0,99672.0,0.200658]
[1736978870870,0.00484683,99675.0,99672.0,0.200658]
[1736978871492,0.00684683,99675.0,99672.0,0.200658]
[1736978871935,0.00584683,99675.0,99672.0,0.200658]
[1736978872107,0.00684683,99675.0,99672.0,0.200658]
[1736978872475,0.00584683,99675.0,99672.0,0.200658]
[1736978872879,0.00684683,99675.0,99672.0,0.200658]
[1736978873290,0.00684683,99675.0,99667.0,0.15]
[1736978873470,0.00684683,99675.0,99670.0,0.15]
[1736978873669,0.00684683,99675.0,99672.0,0.15]
[1736978874139,0.00284683,99675.0,99672.0,0.15]
[1736978874699,0.00184683,99675.0,99672.0,0.15]
[1736978875436,0.00384683,99675.0,99672.0,0.15]
[1736978875846,0.00484683,99675.0,99672.0,0.15]
[1736978876857,0.00484683,99675.0,99670.0,0.15]
[1736978877679,0.00284683,99675.0,99670.0,0.15]
[1736978878011,0.00184683,99675.0,99670.0,0.15]
[1736978878174,0.00484683,99675.0,99670.0,0.15]
[1736978878624,0.00484683,99675.0,99665.0,0.0008548]
[1736978878772,0.38508092,99674.0,99665.0,0.0008548]
[1736978879401,0.18442692,99674.0,99665.0,0.0008548]
[1736978879608,0.200661,99671.0,99665.0,0.0008548]
[1736978880035,0.200661,99671.0,99665.0,0.0018548]
[1736978880448,0.200668,99667.0,99665.0,0.0018548]
[1736978880657,0.0802,99666.0,99665.0,0.0018548]
[1736978880820,0.0802,99666.0,99665.0,0.0008548]
[1736978881279,0.0802,99666.0,99665.0,0.0018548]
[1736978881428,0.0802,99666.0,99665.0,0.0008548]
[1736978881877,0.0872,99666.0,99665.0,0.0018548]
[1736978882394,0.0872,99666.0,99665.0,0.0048548]
[1736978883114,0.0802,99666.0,99665.0,0.0038548]
[1736978883260,0.0812,99666.0,99665.0,0.0108548]
[1736978889038,0.20968121,99666.0,99665.0,0.0108548]
[1736978890122,0.53008121,99666.0,99665.0,0.0108548]
[1736978890325,0.54454596,99666.0,99665.0,0.0108548]
[1736978890802,0.59324596,99666.0,99665.0,0.0108548]
[1736978891017,0.74504167,99666.0,99665.0,0.0108548]
[1736978891221,0.84504167,99666.0,99665.0,0.0108548]
[1736978891430,0.84504167,99666.0,99665.0,0.0078548]
[1736978891615,1.18664292,99666.0,99665.0,0.0078548]
[1736978893034,1.18564292,99666.0,99665.0,0.0008548]
[1736978893403,1.18664292,99666.0,99665.0,0.0008548]
[1736978893617,1.18564292,99666.0,99665.0,0.0008548]
[1736978894068,1.18664292,99666.0,99665.0,0.0008548]
[1736978896005,1.19240292,99666.0,99665.0,0.0008548]
[1736978896858,1.41648552,99666.0,99665.0,0.0008548]
[1736978897130,1.31648552,99666.0,99665.0,0.0008548]
[1736978897551,1.27163352,99666.0,99665.0,0.0008548]
[1736978898241,0.76093693,99666.0,99665.0,0.0008548]
[1736978901105,0.8504816,99666.0,99665.0,0.0008548]
[1736978902815,0.76093693,99666.0,99665.0,0.0008548]
[1736978910516,0.75517693,99666.0,99665.0,0.0008548]
[1736978910717,0.76093693,99666.0,99665.0,0.0008548]
[1736978913915,0.8504816,99666.0,99665.0,0.0008548]
[1736978916779,0.70647693,99666.0,99665.0,0.0008548]
[1736978916983,0.71223693,99666.0,99665.0,0.0008548]
[1736978918017,0.70647693,99666.0,99665.0,0.0008548]
[1736978918221,0.71223693,99666.0,99665.0,0.0008548]
[1736978921662,0.80186048,99666.0,99665.0,0.0008548]
[1736978922426,0.74349568,99666.0,99665.0,0.0008548]
[1736978923416,1.07501888,99666.0,99665.0,0.0008548]
[1736978924293,1.25424948,99666.0,99665.0,0.0008548]
[1736978925841,1.29910148,99666.0,99665.0,0.0008548]
[1736978926390,1.07501888,99666.0,99665.0,0.0008548]
[1736978927551,1.07501888,99666.0,99665.0,0.0008548]
[1736978930520,1.06501888,99666.0,99665.0,0.0008548]
[1736978931536,1.52997937,99666.0,99665.0,0.0008548]
[1736978932542,1.06501888,99666.0,99665.0,0.0008548]
[1736978933399,1.52997937,99666.0,99665.0,0.0008548]
[1736978936336,1.52421937,99666.0,99665.0,0.0008548]
[1736978936563,1.52997937,99666.0,99665.0,0.0008548]
[1736978937356,0.2007,99651.0,99650.0,0.24234738]
[1736978937539,0.30492692,99651.0,99650.0,0.24234738]
[1736978938361,0.43999472,99651.0,99650.0,0.24234738]
[1736978939135,0.30492692,99651.0,99650.0,0.24234738]
[1736978939515,0.30592692,99651.0,99650.0,0.24934738]
[1736978939651,0.30592692,99651.0,99650.0,0.17194738]
[1736978943851,0.2017,99651.0,99650.0,0.17194738]
[1736978945578,0.29174608,99651.0,99650.0,0.17194738]
[1736978946189,0.09104608,99651.0,99650.0,0.17194738]
[1736978946393,0.09104608,99651.0,99650.0,0.29474738]
[1736978946394,0.001,99651.0,99650.0,0.29474738]
[1736978947312,0.023,99652.0,99650.0,0.29474738]
[1736978947313,0.023,99652.0,99650.0,0.28974738]
[1736978947517,0.1,99697.0,99650.0,0.28974738]
[1736978947518,0.023,99656.0,99651.0,0.0774]
[1736978948112,0.023,99664.0,99651.0,0.0774]
[1736978948367,0.023,99662.0,99651.0,0.0774]
[1736978948554,0.023,99660.0,99651.0,0.0774]
[1736978949003,0.023,99662.0,99651.0,0.0774]
[1736978949205,0.023,99660.0,99651.0,0.0774]
[1736978949407,0.30490292,99663.0,99651.0,0.0784]
[1736978949408,0.023,99662.0,99651.0,0.0784]
[1736978949816,0.028,99660.0,99651.0,0.0774]
[1736978950271,0.028,99660.0,99651.0,0.0784]
[1736978950476,0.005,99660.0,99653.0,0.0774]
[1736978950696,0.09004608,99668.0,99653.0,0.0774]
[1736978951135,0.20066,99671.0,99653.0,0.278095]
[1736978951358,0.20066,99671.0,99654.0,0.0774]
[1736978951571,0.20249983,99675.0,99654.0,0.0774]
[1736978951755,0.20066,99671.0,99654.0,0.0774]
[1736978952197,0.002,99660.0,99654.0,0.0774]
[1736978952555,0.20066,99671.0,99654.0,0.0774]
[1736978952757,0.005,99660.0,99654.0,0.0774]
[1736978953198,0.00279571,99666.0,99654.0,0.0774]
[1736978953413,0.003,99660.0,99654.0,0.0774]
[1736978954160,0.023,99663.0,99654.0,0.0774]
[1736978955281,0.002,99660.0,99654.0,0.0774]
[1736978955700,0.023,99663.0,99654.0,0.0774]
[1736978956048,0.025,99663.0,99654.0,0.0774]
[1736978956238,0.023,99662.0,99654.0,0.0774]
[1736978956674,0.023,99659.0,99654.0,0.0774]
[1736978956873,0.023,99659.0,99650.0,0.16494738]
[1736978956874,0.023,99653.0,99650.0,0.16494738]
[1736978957092,0.023,99651.0,99650.0,0.16494738]
[1736978957294,0.12722692,99651.0,99650.0,0.16494738]
[1736978958313,0.12722692,99651.0,99650.0,0.16894738]
[1736978959782,0.12722692,99651.0,99650.0,0.17094738]
[1736978960206,0.12722692,99651.0,99650.0,0.16494738]
[1736978960378,0.12722692,99651.0,99650.0,0.16894738]
[1736978960952,0.12902285,99651.0,99650.0,0.16894738]
[1736978961568,0.12902285,99651.0,99650.0,0.16994738]
[1736978986328,0.44942285,99651.0,99650.0,0.16994738]
[1736978989348,0.5493737,99651.0,99650.0,0.16994738]
[1736978990103,0.45947442,99651.0,99650.0,0.16994738]
[1736978991666,0.59454222,99651.0,99650.0,0.16994738]
[1736978992449,0.45947442,99651.0,99650.0,0.16994738]
[1736978995922,0.54937847,99651.0,99650.0,0.16994738]
[1736978998735,0.45947442,99651.0,99650.0,0.16994738]
[1736978999404,0.59454222,99651.0,99650.0,0.16994738]
[1736979000242,0.79168658,99651.0,99650.0,0.16994738]
[1736979000910,0.97177698,99651.0,99650.0,0.16994738]
[1736979001199,0.96172541,99651.0,99650.0,0.16994738]
[1736979001912,0.78163501,99651.0,99650.0,0.16994738]
[1736979007590,0.78163501,99651.0,99650.0,0.16894738]
[1736979007810,0.78163501,99651.0,99650.0,0.16994738]
[1736979008844,0.78163501,99651.0,99650.0,0.16594738]
[1736979009239,0.78163501,99651.0,99650.0,0.16694738]
[1736979009395,0.78163501,99651.0,99650.0,0.16794738]
[1736979009597,1.05177061,99651.0,99650.0,0.16594738]
[1736979010610,0.78163501,99651.0,99650.0,0.16594738]
[1736979014399,0.78163501,99651.0,99650.0,0.16494738]
[1736979014623,0.78263501,99651.0,99650.0,0.16494738]
[1736979036388,1.05277061,99651.0,99650.0,0.16494738]
[1736979036987,0.78263501,99651.0,99650.0,0.16494738]
[1736979043939,0.78835501,99651.0,99650.0,0.16494738]
[1736979046009,0.81968637,99651.0,99650.0,0.16494738]
[1736979054450,0.89848637,99651.0,99650.0,0.16494738]
[1736979054689,1.04848637,99651.0,99650.0,0.16494738]
[1736979055478,1.51470232,99651.0,99650.0,0.16494738]
[1736979059298,1.818919,99651.0,99650.0,0.16494738]
[1736979060578,1.498519,99651.0,99650.0,0.16494738]
[1736979061862,0.72808637,99651.0,99650.0,0.16494738]
[1736979062868,0.92808637,99651.0,99650.0,0.07231974]
[1736979063078,0.92808637,99651.0,99650.0,0.03217974]
[1736979063602,0.92808637,99651.0,99650.0,7.4e-07]
[1736979063839,0.92708637,99651.0,99650.0,7.4e-07]
[1736979064041,0.93008637,99651.0,99650.0,7.4e-07]
[1736979064251,0.93708637,99651.0,99650.0,7.4e-07]
[1736979064463,0.373718,99642.0,99640.0,0.0017955]
[1736979064685,0.27848173,99641.0,99640.0,0.0017955]
[1736979064872,0.27722692,99641.0,99640.0,0.0017955]
[1736979065292,0.60943908,99641.0,99640.0,0.0017955]
[1736979065677,0.60943908,99641.0,99640.0,0.00229929]
[1736979066859,0.61543908,99641.0,99640.0,0.00229929]
[1736979067495,0.62536025,99641.0,99640.0,0.00229929]
[1736979078146,0.63108025,99641.0,99640.0,0.00229929]
[1736979079539,0.66233939,99641.0,99640.0,0.00229929]
[1736979081280,0.63108025,99641.0,99640.0,0.00229929]
[1736979083487,0.66235247,99641.0,99640.0,0.00229929]
[1736979084079,0.63108025,99641.0,99640.0,0.00229929]
[1736979084277,0.66234957,99641.0,99640.0,0.00229929]
[1736979088914,0.65662957,99641.0,99640.0,0.00229929]
[1736979089116,0.44243908,99641.0,99640.0,0.08439929]
[1736979089976,0.44043908,99641.0,99640.0,0.08439929]
[1736979090184,0.43643908,99641.0,99640.0,0.08439929]
[1736979090411,0.43843908,99641.0,99640.0,0.08639929]
[1736979090757,0.10622692,99641.0,99640.0,0.08639929]
[1736979091213,0.10622692,99641.0,99640.0,0.08439929]
[1736979092274,0.10422692,99641.0,99640.0,0.08439929]
[1736979092491,0.10422692,99641.0,99640.0,0.08539929]
[1736979092690,0.10422692,99641.0,99640.0,0.08839929]
[1736979107268,0.10422692,99641.0,99640.0,0.00629929]
[1736979121894,0.11173968,99641.0,99640.0,0.00629929]
[1736979122294,0.10673968,99641.0,99640.0,0.00629929]
[1736979123267,0.09922692,99641.0,99640.0,0.00629929]
[1736979124100,0.10102242,99641.0,99640.0,0.00629929]
[1736979128210,0.17967689,99641.0,99640.0,0.00629929]
[1736979129315,0.69146689,99641.0,99640.0,0.00629929]
[1736979129524,0.70044559,99641.0,99640.0,0.00329929]
[1736979130145,0.70044559,99641.0,99640.0,0.00429929]
[1736979130146,0.52066398,99641.0,99640.0,0.00429929]
[1736979130548,0.52066398,99641.0,99640.0,0.00329929]
[1736979130754,0.52066398,99641.0,99640.0,0.00229929]
[1736979130896,0.84206398,99641.0,99640.0,0.00229929]
[1736979131741,0.84306398,99641.0,99640.0,0.00229929]
[1736979132748,0.76566398,99641.0,99640.0,0.00229929]
[1736979132976,0.76566398,99641.0,99640.0,0.12589929]
[1736979132977,0.33580389,99641.0,99640.0,0.12589929]
[1736979133185,0.33580389,99641.0,99640.0,0.13577418]
[1736979133390,0.33580389,99641.0,99640.0,0.12589929]
[1736979133603,0.33380389,99641.0,99640.0,0.12589929]
[1736979133811,0.33380389,99641.0,99640.0,0.12689929]
[1736979134222,0.0017955,99641.0,99640.0,0.12589929]
[1736979134677,0.0027955,99641.0,99640.0,0.12589929]
[1736979135084,0.0027955,99641.0,99640.0,0.12689929]
[1736979135272,0.0027955,99641.0,99640.0,0.12589929]
[1736979135470,0.0027955,99641.0,99640.0,0.12789929]
[1736979135923,0.0027955,99641.0,99640.0,0.12589929]
[1736979136128,0.0017955,99641.0,99640.0,0.12789929]
[1736979137134,0.0017955,99641.0,99640.0,0.12889929]
[1736979137721,0.0017955,99641.0,99640.0,0.50612621]
[1736979138291,0.0017955,99650.0,99640.0,0.50612621]
[1736979138493,0.0017955,99650.0,99649.0,0.547304]
[1736979138752,0.0017955,99650.0,99649.0,0.65153092]
[1736979139411,0.0017955,99650.0,99649.0,0.78658895]
[1736979139590,0.0017955,99650.0,99649.0,0.78758895]
[1736979140617,0.0017955,99650.0,99649.0,0.65253092]
[1736979143114,0.0017955,99650.0,99649.0,0.66244161]
[1736979147332,0.0017955,99650.0,99649.0,0.56244161]
[1736979147597,0.0017955,99650.0,99649.0,0.66244161]
[1736979152108,0.0017955,99650.0,99649.0,0.53521469]
[1736979155188,0.0017955,99650.0,99649.0,0.45821469]
[1736979155397,0.0017955,99650.0,99649.0,0.23461469]
[1736979156422,0.0017955,99650.0,99649.0,0.38461469]
[1736979156629,0.0027955,99650.0,99649.0,0.38461469]
[1736979157504,0.0027955,99650.0,99649.0,0.38361469]
[1736979157709,0.0047955,99650.0,99649.0,0.38361469]
[1736979160019,0.0047955,99650.0,99649.0,0.023]
[1736979160273,0.0047955,99650.0,99641.0,0.21184224]
[1736979160495,0.0047955,99650.0,99642.0,0.023]
[1736979161467,0.0027955,99650.0,99642.0,0.023]
[1736979161682,0.0017955,99650.0,99642.0,0.023]
[1736979162002,0.0077955,99650.0,99649.0,0.001]
[1736979162179,0.0027955,99650.0,99642.0,0.023]
[1736979162325,0.0067955,99650.0,99642.0,0.023]
[1736979162520,0.0057955,99650.0,99642.0,0.023]
[1736979162768,0.0077955,99650.0,99642.0,0.023]
[1736979166675,0.0077955,99650.0,99641.0,0.023855]
[1736979167650,0.0037955,99650.0,99641.0,0.023855]
[1736979168151,0.0067955,99650.0,99641.0,0.023855]
[1736979168355,0.0047955,99650.0,99641.0,0.023855]
[1736979168802,0.0067955,99650.0,99641.0,0.023855]
[1736979173919,0.200704,99649.0,99641.0,0.023855]
[1736979175061,0.202704,99649.0,99641.0,0.023855]
[1736979175266,0.205704,99649.0,99641.0,0.023855]
[1736979175418,0.005,99649.0,99641.0,0.023855]
[1736979176531,0.200706,99648.0,99641.0,0.023855]
[1736979176728,0.005,99649.0,99641.0,0.023855]
[1736979176975,0.0832,99646.0,99641.0,0.023855]
[1736979177742,0.28391,99646.0,99641.0,0.023855]
[1736979178635,0.28591,99646.0,99641.0,0.023855]
[1736979178839,0.28891,99646.0,99641.0,0.023855]
[1736979182270,0.0882,99646.0,99641.0,0.023855]
[1736979182474,0.200718,99642.0,99641.0,0.023855]
[1736979183529,0.200712,99645.0,99641.0,0.023855]
[1736979183892,0.005,99642.0,99641.0,0.023855]
[1736979184327,0.003,99642.0,99641.0,0.023855]
[1736979185390,0.005,99642.0,99641.0,0.023855]
[1736979189555,0.10922692,99642.0,99641.0,0.000855]
[1736979190542,0.003,99642.0,99641.0,0.000855]
[1736979190674,0.200715,99644.0,99641.0,0.000855]
[1736979190883,0.200715,99644.0,99641.0,0.002855]
[1736979191098,0.200715,99644.0,99641.0,0.007855]
[1736979191298,0.40143,99644.0,99641.0,0.007855]
[1736979191678,0.40143,99644.0,99641.0,0.005855]
[1736979191889,0.40143,99644.0,99641.0,0.007855]
[1736979193120,0.40143,99644.0,99641.0,0.002855]
[1736979193540,0.40243,99644.0,99641.0,0.005855]
[1736979199848,0.40243,99644.0,99641.0,0.003855]
[1736979200050,0.40243,99644.0,99641.0,0.004855]
[1736979200383,0.40243,99644.0,99641.0,0.001855]
[1736979200384,0.40143,99644.0,99641.0,0.001855]
[1736979200596,0.40143,99644.0,99641.0,0.003855]
[1736979201031,0.40143,99644.0,99641.0,0.004855]
[1736979201431,0.50565692,99644.0,99641.0,0.004855]
[1736979207639,0.50745242,99644.0,99641.0,0.004855]
[1736979210021,0.0017955,99644.0,99642.0,0.023]
[1736979212110,0.0017955,99644.0,99641.0,0.023855]
[1736979212987,0.0027955,99644.0,99641.0,0.023855]
[1736979213512,0.0017955,99644.0,99641.0,0.023855]
[1736979213703,0.0027955,99644.0,99641.0,0.023855]
[1736979219374,0.0017955,99644.0,99641.0,0.023855]
[1736979219584,0.0017955,99644.0,99641.0,0.024855]
[1736979219831,0.0067955,99644.0,99641.0,0.025855]
[1736979219962,0.0067955,99644.0,99641.0,0.024855]
[1736979220164,0.0087955,99644.0,99641.0,0.024855]
[1736979222790,0.0087955,99644.0,99643.0,0.023]
[1736979223745,0.0067955,99644.0,99643.0,0.023]
[1736979224240,0.0067955,99644.0,99643.0,0.101]
[1736979224241,0.0097955,99644.0,99643.0,0.101]
[1736979224684,0.0047955,99644.0,99643.0,0.101]
[1736979224829,0.0107955,99644.0,99643.0,0.102]
[1736979225060,0.0047955,99644.0,99643.0,0.101]
[1736979225235,0.0047955,99644.0,99643.0,0.3002]
[1736979225430,0.0077955,99644.0,99643.0,0.60442692]
[1736979225683,0.0047955,99644.0,99643.0,0.60442692]
[1736979225886,0.0057955,99644.0,99643.0,0.60442692]
[1736979226306,0.0017955,99644.0,99643.0,0.60442692]
[1736979226945,0.0017955,99644.0,99643.0,0.82963035]
[1736979227918,0.0017955,99644.0,99643.0,0.83957434]
[1736979228655,0.0017955,99644.0,99643.0,0.61437091]
[1736979229053,0.0017955,99644.0,99643.0,0.61537091]
[1736979229211,0.0017955,99644.0,99643.0,0.61737091]
[1736979230484,0.0017955,99644.0,99643.0,0.84243955]
[1736979230707,0.0017955,99644.0,99643.0,0.61737091]
[1736979233163,0.0017955,99644.0,99643.0,0.7973035]
[1736979234674,0.0017955,99644.0,99643.0,0.61737091]
[1736979236518,0.0017955,99644.0,99643.0,0.75225428]
[1736979237066,0.0017955,99644.0,99643.0,0.61737091]
[1736979240338,0.0017955,99644.0,99643.0,0.51737091]
[1736979240593,0.0017955,99644.0,99643.0,0.61737091]
[1736979244471,0.0017955,99644.0,99643.0,0.51737091]
[1736979244683,0.0017955,99644.0,99643.0,0.61737091]
[1736979244894,0.0017955,99644.0,99643.0,0.16294399]
[1736979245107,0.0017955,99644.0,99643.0,0.26294399]
[1736979245349,0.0017955,99644.0,99643.0,0.34444399]
[1736979245970,0.0017955,99644.0,99643.0,0.36644399]
[1736979246638,0.0017955,99644.0,99643.0,0.36444399]
[1736979248280,0.0017955,99644.0,99643.0,0.26444399]
[1736979248432,0.0017955,99644.0,99643.0,0.18294399]
[1736979248634,0.0017955,99644.0,99643.0,0.28294399]
[1736979252762,0.0017955,99644.0,99643.0,0.18294399]
[1736979252988,0.0017955,99644.0,99643.0,0.28294399]
[1736979254571,0.0017955,99644.0,99643.0,0.18294399]
[1736979254739,0.0017955,99644.0,99643.0,0.28294399]
[1736979255270,0.0017955,99644.0,99643.0,0.18294399]
[1736979256096,0.0017955,99644.0,99643.0,0.28294399]
[1736979257576,0.0017955,99644.0,99643.0,0.18294399]
[1736979258183,0.0017955,99644.0,99643.0,0.28294399]
[1736979258391,0.0017955,99644.0,99643.0,0.18294399]
[1736979268382,0.0017955,99644.0,99643.0,0.38717091]
[1736979269593,0.0017955,99644.0,99643.0,0.38817091]
[1736979269791,0.0017955,99644.0,99643.0,0.38717091]
[1736979270195,0.0017955,99644.0,99643.0,0.38917091]
[1736979270609,0.0017955,99644.0,99643.0,0.39017091]
[1736979271037,0.0017955,99644.0,99643.0,0.38917091]
[1736979271410,0.0017955,99644.0,99643.0,0.39017091]
[1736979272790,0.0017955,99644.0,99643.0,0.39017091]
[1736979277407,0.0017955,99644.0,99643.0,0.18594399]
[1736979321551,0.0017955,99644.0,99643.0,0.97784498]
[1736979322395,0.0017955,99644.0,99643.0,0.97484498]
[1736979322654,0.0017955,99644.0,99643.0,1.37473351]
[1736979322810,0.0017955,99644.0,99643.0,1.37873351]
[1736979324336,0.0027955,99644.0,99643.0,0.98684498]
[1736979335928,0.00228388,99644.0,99643.0,0.98684498]
[1736979337012,0.0823,99676.0,99665.0,0.1]
[1736979337265,0.0776,99682.0,99665.0,0.57789892]
[1736979337498,0.0776,99682.0,99665.0,0.67789892]
[1736979337732,0.0776,99688.0,99665.0,0.67789892]
[1736979338443,0.0776,99688.0,99665.0,0.68589892]
[1736979338695,0.00279571,99666.0,99665.0,0.68589892]
[1736979338941,0.00279571,99666.0,99665.0,0.67789892]
[1736979339188,0.00379571,99666.0,99665.0,0.68489892]
[1736979339428,0.00279571,99666.0,99665.0,0.67789892]
[1736979340297,0.00279571,99666.0,99665.0,0.68089892]
[1736979340736,0.00279571,99666.0,99665.0,1.00639892]
[1736979341124,0.00279571,99666.0,99665.0,1.00939892]
[1736979341336,0.00379571,99666.0,99665.0,1.01639892]
[1736979341948,0.00379571,99666.0,99665.0,1.02656916]
[1736979343776,0.00379571,99666.0,99665.0,1.04627294]
[1736979356465,0.00379571,99666.0,99665.0,1.27105857]
[1736979357518,0.00379571,99666.0,99665.0,1.04627294]
[1736979360872,0.08199571,99666.0,99665.0,0.49867024]
[1736979361454,0.08199571,99666.0,99665.0,0.52167024]
[1736979362053,0.08199571,99666.0,99665.0,0.4885]
[1736979362255,0.07999571,99666.0,99665.0,0.3315]
[1736979362451,0.12939571,99666.0,99665.0,0.3295]
[1736979362617,0.12939571,99666.0,99665.0,0.3525]
[1736979362807,0.12939571,99666.0,99665.0,0.3515]
[1736979363014,0.12939571,99666.0,99665.0,0.023]
[1736979363442,0.0811,99665.0,99651.0,0.0008549]
[1736979363655,0.05119571,99666.0,99651.0,0.0008549]
[1736979363656,0.200678,99662.0,99651.0,0.0008549]
[1736979363874,0.0494,99661.0,99651.0,0.0008549]
[1736979364082,0.0811,99660.0,99651.0,0.0008549]
[1736979365157,0.0841,99660.0,99651.0,0.0008549]
[1736979366771,0.0851,99660.0,99651.0,0.0008549]
[1736979373833,0.0811,99658.0,99651.0,0.0008549]
[1736979375049,0.0821,99658.0,99651.0,0.0008549]
[1736979375259,0.0851,99658.0,99651.0,0.0008549]
[1736979381064,0.0851,99658.0,99651.0,0.2015529]
[1736979381833,0.0851,99658.0,99651.0,0.21161074]
[1736979382054,0.0821,99658.0,99651.0,0.21161074]
[1736979382465,0.0841,99658.0,99651.0,0.21161074]
[1736979383065,0.0848953,99658.0,99651.0,0.21161074]
[1736979383272,0.0848953,99658.0,99651.0,0.01091274]
[1736979383509,0.0858953,99658.0,99651.0,0.01091274]
[1736979383928,0.0848953,99658.0,99651.0,0.01091274]
[1736979384259,0.0858953,99658.0,99651.0,0.21161074]
[1736979387051,0.0858953,99658.0,99653.0,0.200696]
[1736979388300,0.0858953,99658.0,99651.0,0.21161074]
[1736979388301,0.0838953,99658.0,99656.0,0.023]
[1736979388497,0.0037953,99658.0,99656.0,0.023]
[1736979389144,0.0037953,99658.0,99657.0,0.223688]
[1736979389356,0.0017953,99658.0,99657.0,0.223688]
[1736979389656,0.0037953,99658.0,99657.0,0.223688]
[1736979389894,0.0047953,99658.0,99657.0,0.223688]
[1736979390699,0.0037953,99658.0,99657.0,0.223688]
[1736979391146,0.0017953,99658.0,99657.0,0.223688]
[1736979391358,0.0037953,99658.0,99657.0,0.223688]
[1736979391743,0.0047953,99658.0,99657.0,0.223688]
[1736979392374,0.0027953,99658.0,99657.0,0.223688]
[1736979392619,0.0047953,99658.0,99657.0,0.223688]
[1736979393056,0.0037953,99658.0,99657.0,0.223688]
[1736979393284,0.0047953,99658.0,99657.0,0.223688]
[1736979395881,0.0047953,99658.0,99657.0,0.373688]
[1736979396087,0.0808953,99658.0,99657.0,0.173]
[1736979396303,0.0808953,99658.0,99651.0,0.01091274]
[1736979396304,0.0808953,99658.0,99651.0,0.0008549]
[1736979396774,0.0798953,99658.0,99651.0,0.0008549]